[Event "Titled Tuesday Blitz February 28 Early 2023"]
[White "Neiksans, Arturs"]
[Black "benny_aizenberg"]
[WhiteFideId "11601388"]
[WhiteElo "2497"]
[BlackElo "2556"]
[Result "1/2-1/2"]
[Round "02"]
[TimeControl "180+2"]
[Date "2023.02.28"]
[WhiteClock "0:00:01"]
[BlackClock "0:00:05"]

1. Nf3 {[%clk 0:03:00]}  g6 {[%clk 0:02:56]} 2. e4 {[%clk 0:02:59]}  c5 {[%clk 0:02:55]} 3. d4 {[%clk 0:02:59]}  cxd4 {[%clk 0:02:55]} 4. Nxd4 {[%clk 0:03:00]}  Nc6 {[%clk 0:02:53]} 5. c4 {[%clk 0:03:00]}  Bg7 {[%clk 0:02:49]} 6. Be3 {[%clk 0:02:59]}  Nf6 {[%clk 0:02:49]} 7. Nc3 {[%clk 0:02:58]}  Ng4 {[%clk 0:02:49]} 8. Qxg4 {[%clk 0:02:57]}  Nxd4 {[%clk 0:02:49]} 9. Qd1 {[%clk 0:02:57]}  e5 {[%clk 0:02:50]} 10. Bd3 {[%clk 0:02:56]}  O-O {[%clk 0:02:49]} 11. O-O {[%clk 0:02:56]}  d6 {[%clk 0:02:50]} 12. a4 {[%clk 0:02:55]}  f5 {[%clk 0:02:45]} 13. exf5 {[%clk 0:02:52]}  gxf5 {[%clk 0:02:45]} 14. f4 {[%clk 0:02:52]}  Be6 {[%clk 0:02:38]} 15. Re1 {[%clk 0:02:43]}  e4 {[%clk 0:02:16]} 16. Bxe4 {[%clk 0:02:41]}  fxe4 {[%clk 0:02:09]} 17. Bxd4 {[%clk 0:02:40]}  Rxf4 {[%clk 0:01:53]} 18. Nxe4 {[%clk 0:02:39]}  Bxc4 {[%clk 0:01:45]} 19. Bxg7 {[%clk 0:02:37]}  Kxg7 {[%clk 0:01:45]} 20. Qd4+ {[%clk 0:02:36]}  Kg8 {[%clk 0:01:33]} 21. g3 {[%clk 0:02:27]}  Rf7 {[%clk 0:01:23]} 22. Nxd6 {[%clk 0:02:17]}  Bb3 {[%clk 0:00:51]} 23. Re8+ {[%clk 0:01:43]}  Qxe8 {[%clk 0:00:51]} 24. Nxe8 {[%clk 0:01:44]}  Rxe8 {[%clk 0:00:52]} 25. Rf1 {[%clk 0:01:42]}  b6 {[%clk 0:00:34]} 26. Rxf7 {[%clk 0:01:41]}  Bxf7 {[%clk 0:00:34]} 27. Qd7 {[%clk 0:01:36]}  a5 {[%clk 0:00:31]} 28. Qc7 {[%clk 0:01:30]}  Re6 {[%clk 0:00:30]} 29. g4 {[%clk 0:01:19]}  Rg6 {[%clk 0:00:13]} 30. h3 {[%clk 0:01:17]}  h5 {[%clk 0:00:13]} 31. Qf4 {[%clk 0:01:17]}  hxg4 {[%clk 0:00:13]} 32. hxg4 {[%clk 0:01:17]}  Re6 {[%clk 0:00:09]} 33. Kf2 {[%clk 0:01:13]}  Kg7 {[%clk 0:00:10]} 34. g5 {[%clk 0:01:14]}  Kg8 {[%clk 0:00:07]} 35. Kg3 {[%clk 0:01:12]}  Kg7 {[%clk 0:00:07]} 36. Qf5 {[%clk 0:01:11]}  Kg8 {[%clk 0:00:06]} 37. Qf4 {[%clk 0:01:07]}  Kg7 {[%clk 0:00:06]} 38. Qd4+ {[%clk 0:01:07]}  Kg8 {[%clk 0:00:05]} 39. Kf4 {[%clk 0:01:07]}  Kf8 {[%clk 0:00:05]} 40. Qh8+ {[%clk 0:01:05]}  Ke7 {[%clk 0:00:05]} 41. Qb8 {[%clk 0:01:04]}  Be8 {[%clk 0:00:03]} 42. b3 {[%clk 0:00:59]}  Bg6 {[%clk 0:00:02]} 43. Qg8 {[%clk 0:00:57]}  Re4+ {[%clk 0:00:02]} 44. Kf3 {[%clk 0:00:56]}  Re6 {[%clk 0:00:03]} 45. Qg7+ {[%clk 0:00:55]}  Ke8 {[%clk 0:00:03]} 46. Qc7 {[%clk 0:00:53]}  Kf8 {[%clk 0:00:03]} 47. Kf4 {[%clk 0:00:52]}  Re4+ {[%clk 0:00:03]} 48. Kf3 {[%clk 0:00:52]}  Re6 {[%clk 0:00:04]} 49. Qc3 {[%clk 0:00:51]}  Kf7 {[%clk 0:00:03]} 50. Qh8 {[%clk 0:00:50]}  Ke7 {[%clk 0:00:02]} 51. Qg7+ {[%clk 0:00:49]}  Ke8 {[%clk 0:00:03]} 52. Kf2 {[%clk 0:00:48]}  Bf7 {[%clk 0:00:02]} 53. Qd4 {[%clk 0:00:45]}  Ke7 {[%clk 0:00:02]} 54. b4 {[%clk 0:00:46]}  axb4 {[%clk 0:00:02]} 55. Qxb4+ {[%clk 0:00:46]}  Ke8 {[%clk 0:00:02]} 56. Qd4 {[%clk 0:00:46]}  Bg6 {[%clk 0:00:02]} 57. Qd5 {[%clk 0:00:44]}  Ke7 {[%clk 0:00:02]} 58. Qb7+ {[%clk 0:00:43]}  Ke8 {[%clk 0:00:03]} 59. Kg3 {[%clk 0:00:43]}  Kf8 {[%clk 0:00:03]} 60. Qc8+ {[%clk 0:00:42]}  Ke7 {[%clk 0:00:03]} 61. Kf4 {[%clk 0:00:42]}  Re4+ {[%clk 0:00:03]} 62. Kf3 {[%clk 0:00:42]}  Re6 {[%clk 0:00:04]} 63. Qc7+ {[%clk 0:00:43]}  Ke8 {[%clk 0:00:04]} 64. Qg7 {[%clk 0:00:42]}  Kd8 {[%clk 0:00:03]} 65. Qd4+ {[%clk 0:00:42]}  Ke7 {[%clk 0:00:03]} 66. Kf4 {[%clk 0:00:41]}  Ke8 {[%clk 0:00:03]} 67. Qd5 {[%clk 0:00:41]}  Ke7 {[%clk 0:00:03]} 68. Qc4 {[%clk 0:00:40]}  Kf7 {[%clk 0:00:03]} 69. Qc7+ {[%clk 0:00:35]}  Ke8 {[%clk 0:00:03]} 70. Kg3 {[%clk 0:00:35]}  Kf8 {[%clk 0:00:04]} 71. Qd7 {[%clk 0:00:35]}  Bf7 {[%clk 0:00:03]} 72. Kf4 {[%clk 0:00:32]}  Re7 {[%clk 0:00:02]} 73. Qd8+ {[%clk 0:00:30]}  Be8 {[%clk 0:00:03]} 74. g6 {[%clk 0:00:24]}  Re6 {[%clk 0:00:03]} 75. Kf5 {[%clk 0:00:19]}  Rxg6 {[%clk 0:00:03]} 76. Qc7 {[%clk 0:00:16]}  Rc6 {[%clk 0:00:03]} 77. Qa7 {[%clk 0:00:13]}  Rg6 {[%clk 0:00:02]} 78. Qc7 {[%clk 0:00:11]}  Rc6 {[%clk 0:00:03]} 79. Qd8 {[%clk 0:00:10]}  Rh6 {[%clk 0:00:02]} 80. Kg5 {[%clk 0:00:09]}  Rg6+ {[%clk 0:00:03]} 81. Kf4 {[%clk 0:00:09]}  Rc6 {[%clk 0:00:03]} 82. Ke5 {[%clk 0:00:08]}  Rg6 {[%clk 0:00:04]} 83. Kd4 {[%clk 0:00:08]}  Rc6 {[%clk 0:00:03]} 84. Kd5 {[%clk 0:00:07]}  Rg6 {[%clk 0:00:04]} 85. Qb8 {[%clk 0:00:06]}  Ke7 {[%clk 0:00:03]} 86. Qe5+ {[%clk 0:00:04]}  Kd8 {[%clk 0:00:03]} 87. Qf5 {[%clk 0:00:04]}  Rc6 {[%clk 0:00:02]} 88. Qg5+ {[%clk 0:00:04]}  Kc7 {[%clk 0:00:02]} 89. Qe5+ {[%clk 0:00:04]}  Kd8 {[%clk 0:00:02]} 90. Qxe8+ {[%clk 0:00:04]}  Kxe8 {[%clk 0:00:02]} 91. Kxc6 {[%clk 0:00:05]}  Kd8 {[%clk 0:00:03]} 92. Kb7 {[%clk 0:00:04]}  Kd7 {[%clk 0:00:03]} 93. Kxb6 {[%clk 0:00:04]}  Kc8 {[%clk 0:00:03]} 94. Ka7 {[%clk 0:00:04]}  Kc7 {[%clk 0:00:04]} 95. Ka8 {[%clk 0:00:04]}  Kb6 {[%clk 0:00:04]} 96. a5+ {[%clk 0:00:01]}  Kxa5 {[%clk 0:00:05]} 1/2-1/2


[Site "https://www.chess.com"]

[Event "Titled Tuesday Blitz February 28 Early 2023"]
[White "Stijve, Theo"]
[Black "Harsh Suresh"]
[WhiteFideId "1331132"]
[BlackFideId "45018464"]
[WhiteElo "2256"]
[BlackElo "2227"]
[Result "0-1"]
[Round "02"]
[TimeControl "180+2"]
[Date "2023.02.28"]
[WhiteClock "0:02:22"]
[BlackClock "0:02:35"]

1. e4 {[%clk 0:02:55]}  c5 {[%clk 0:02:59]} 2. Nf3 {[%clk 0:02:55]}  g6 {[%clk 0:02:59]} 3. d4 {[%clk 0:02:55]}  cxd4 {[%clk 0:02:59]} 4. Qxd4 {[%clk 0:02:55]}  Nf6 {[%clk 0:02:59]} 5. Nc3 {[%clk 0:02:56]}  Nc6 {[%clk 0:02:59]} 6. Qa4 {[%clk 0:02:56]}  d6 {[%clk 0:02:59]} 7. e5 {[%clk 0:02:57]}  dxe5 {[%clk 0:03:00]} 8. Nxe5 {[%clk 0:02:58]}  Bg7 {[%clk 0:02:59]} 9. Bb5 {[%clk 0:02:57]}  O-O {[%clk 0:02:57]} 10. Nxc6 {[%clk 0:02:55]}  bxc6 {[%clk 0:02:57]} 11. Bxc6 {[%clk 0:02:55]}  Rb8 {[%clk 0:02:51]} 12. O-O {[%clk 0:02:55]}  a5 {[%clk 0:02:40]} 13. Rd1 {[%clk 0:02:50]}  Qc7 {[%clk 0:02:40]} 14. Re1 {[%clk 0:02:39]}  Rb4 {[%clk 0:02:38]} 15. Qa3 {[%clk 0:02:27]}  Qxc6 {[%clk 0:02:38]} 16. Qxa5 {[%clk 0:02:27]}  Rg4 {[%clk 0:02:36]} 17. g3 {[%clk 0:02:22]}  Bb7 {[%clk 0:02:35]} 0-1


[Site "https://www.chess.com"]

[Event "Titled Tuesday Blitz February 28 Early 2023"]
[White "Maximov, Dmitry"]
[Black "Demin, Vladimir"]
[WhiteFideId "14105659"]
[BlackFideId "4167457"]
[WhiteElo "2494"]
[BlackElo "2550"]
[Result "1-0"]
[Round "02"]
[TimeControl "180+2"]
[Date "2023.02.28"]
[WhiteClock "0:00:31"]
[BlackClock "0:00:01"]

1. e4 {[%clk 0:03:00]}  e5 {[%clk 0:02:59]} 2. Nf3 {[%clk 0:03:00]}  Nc6 {[%clk 0:03:00]} 3. Bb5 {[%clk 0:03:00]}  a6 {[%clk 0:03:00]} 4. Ba4 {[%clk 0:03:00]}  Bc5 {[%clk 0:03:00]} 5. O-O {[%clk 0:02:59]}  Nge7 {[%clk 0:03:01]} 6. c3 {[%clk 0:02:54]}  Ba7 {[%clk 0:03:01]} 7. d4 {[%clk 0:02:53]}  Ng6 {[%clk 0:03:01]} 8. Be3 {[%clk 0:02:50]}  O-O {[%clk 0:02:58]} 9. Nbd2 {[%clk 0:02:48]}  exd4 {[%clk 0:02:55]} 10. cxd4 {[%clk 0:02:48]}  d5 {[%clk 0:02:54]} 11. Bxc6 {[%clk 0:02:26]}  bxc6 {[%clk 0:02:52]} 12. e5 {[%clk 0:02:26]}  Re8 {[%clk 0:02:28]} 13. Rc1 {[%clk 0:02:17]}  c5 {[%clk 0:02:27]} 14. dxc5 {[%clk 0:02:07]}  Nxe5 {[%clk 0:02:20]} 15. Nxe5 {[%clk 0:02:06]}  Rxe5 {[%clk 0:02:21]} 16. Bd4 {[%clk 0:02:05]}  Rg5 {[%clk 0:02:09]} 17. Rc3 {[%clk 0:02:01]}  c6 {[%clk 0:02:02]} 18. Rg3 {[%clk 0:01:54]}  Bb8 {[%clk 0:01:51]} 19. f4 {[%clk 0:01:30]}  Rxg3 {[%clk 0:01:49]} 20. hxg3 {[%clk 0:01:30]}  Bf5 {[%clk 0:01:46]} 21. Re1 {[%clk 0:01:28]}  Bc7 {[%clk 0:01:41]} 22. g4 {[%clk 0:01:19]}  Bd3 {[%clk 0:01:20]} 23. Qf3 {[%clk 0:01:17]}  Bg6 {[%clk 0:01:04]} 24. f5 {[%clk 0:00:51]}  Qh4 {[%clk 0:01:04]} 25. g3 {[%clk 0:00:51]}  Bxg3 {[%clk 0:01:02]} 26. Re2 {[%clk 0:00:52]}  Bh5 {[%clk 0:00:53]} 27. Rg2 {[%clk 0:00:38]}  Bc7 {[%clk 0:00:01]} 28. Bf2 {[%clk 0:00:31]} 1-0


[Site "https://www.chess.com"]

[Event "Titled Tuesday Blitz February 28 Early 2023"]
[White "Ilinca Ilinca, Felix Antonio"]
[Black "Ozen, Bahadir"]
[WhiteFideId "54764998"]
[BlackFideId "6337058"]
[WhiteElo "2031"]
[BlackElo "2503"]
[Result "1-0"]
[Round "02"]
[TimeControl "180+2"]
[Date "2023.02.28"]
[WhiteClock "0:00:20"]
[BlackClock "0:00:05"]

1. e4 {[%clk 0:03:00]}  c6 {[%clk 0:02:58]} 2. d4 {[%clk 0:03:00]}  d5 {[%clk 0:02:58]} 3. Nc3 {[%clk 0:03:00]}  dxe4 {[%clk 0:02:58]} 4. Nxe4 {[%clk 0:03:00]}  Bf5 {[%clk 0:02:59]} 5. Ng3 {[%clk 0:03:01]}  Bg6 {[%clk 0:02:59]} 6. h4 {[%clk 0:03:01]}  h6 {[%clk 0:02:59]} 7. Nf3 {[%clk 0:03:01]}  Nd7 {[%clk 0:02:59]} 8. h5 {[%clk 0:03:01]}  Bh7 {[%clk 0:02:59]} 9. Bd3 {[%clk 0:03:02]}  Bxd3 {[%clk 0:03:00]} 10. Qxd3 {[%clk 0:03:03]}  e6 {[%clk 0:03:00]} 11. Bf4 {[%clk 0:03:03]}  Qa5+ {[%clk 0:02:51]} 12. Bd2 {[%clk 0:03:03]}  Bb4 {[%clk 0:02:51]} 13. c3 {[%clk 0:03:00]}  Be7 {[%clk 0:02:47]} 14. a3 {[%clk 0:02:58]}  Ngf6 {[%clk 0:02:39]} 15. c4 {[%clk 0:02:57]}  Qc7 {[%clk 0:02:30]} 16. O-O-O {[%clk 0:02:55]}  O-O {[%clk 0:02:24]} 17. Bc3 {[%clk 0:02:43]}  b5 {[%clk 0:02:17]} 18. Ne5 {[%clk 0:02:27]}  bxc4 {[%clk 0:02:08]} 19. Qxc4 {[%clk 0:02:26]}  Nxe5 {[%clk 0:01:45]} 20. dxe5 {[%clk 0:02:24]}  Nd5 {[%clk 0:01:46]} 21. Ne4 {[%clk 0:02:22]}  Rab8 {[%clk 0:01:36]} 22. Rd3 {[%clk 0:02:19]}  Qb6 {[%clk 0:01:17]} 23. Rg3 {[%clk 0:02:14]}  Kh8 {[%clk 0:01:16]} 24. Bd4 {[%clk 0:01:43]}  c5 {[%clk 0:00:59]} 25. Bc3 {[%clk 0:01:32]}  Qb3 {[%clk 0:00:45]} 26. Qxb3 {[%clk 0:01:14]}  Rxb3 {[%clk 0:00:46]} 27. Kc2 {[%clk 0:01:14]}  Rfb8 {[%clk 0:00:46]} 28. Nd2 {[%clk 0:01:14]}  R3b5 {[%clk 0:00:40]} 29. Nc4 {[%clk 0:01:13]}  Rb3 {[%clk 0:00:34]} 30. Na5 {[%clk 0:01:06]}  R3b6 {[%clk 0:00:33]} 31. Nc4 {[%clk 0:01:05]}  Rb3 {[%clk 0:00:33]} 32. Rd1 {[%clk 0:00:46]}  Kg8 {[%clk 0:00:33]} 33. Rgd3 {[%clk 0:00:41]}  R3b7 {[%clk 0:00:31]} 34. g3 {[%clk 0:00:41]}  a6 {[%clk 0:00:29]} 35. f4 {[%clk 0:00:40]}  Kf8 {[%clk 0:00:26]} 36. Rf1 {[%clk 0:00:36]}  g6 {[%clk 0:00:16]} 37. hxg6 {[%clk 0:00:36]}  fxg6 {[%clk 0:00:17]} 38. g4 {[%clk 0:00:36]}  Ke8 {[%clk 0:00:11]} 39. f5 {[%clk 0:00:35]}  gxf5 {[%clk 0:00:12]} 40. gxf5 {[%clk 0:00:36]}  Nxc3 {[%clk 0:00:12]} 41. Rxc3 {[%clk 0:00:35]}  exf5 {[%clk 0:00:12]} 42. Rxf5 {[%clk 0:00:36]}  Kd7 {[%clk 0:00:11]} 43. Rh5 {[%clk 0:00:33]}  Rh8 {[%clk 0:00:11]} 44. Rg3 {[%clk 0:00:30]}  Rbb8 {[%clk 0:00:06]} 45. Rg6 {[%clk 0:00:29]}  Rbg8 {[%clk 0:00:06]} 46. Rxa6 {[%clk 0:00:28]}  Rg2+ {[%clk 0:00:06]} 47. Kb3 {[%clk 0:00:28]}  Rb8+ {[%clk 0:00:07]} 48. Ka4 {[%clk 0:00:27]}  Rg4 {[%clk 0:00:07]} 49. b3 {[%clk 0:00:26]}  Rg3 {[%clk 0:00:08]} 50. e6+ {[%clk 0:00:25]}  Kc7 {[%clk 0:00:07]} 51. Ra7+ {[%clk 0:00:21]}  Rb7 {[%clk 0:00:06]} 52. Rxb7+ {[%clk 0:00:22]}  Kxb7 {[%clk 0:00:07]} 53. Rxh6 {[%clk 0:00:22]}  Rg7 {[%clk 0:00:05]} 54. Kb5 {[%clk 0:00:22]}  Kc7 {[%clk 0:00:06]} 55. a4 {[%clk 0:00:22]}  Rg8 {[%clk 0:00:06]} 56. a5 {[%clk 0:00:20]}  Rb8+ {[%clk 0:00:07]} 57. Nb6 {[%clk 0:00:20]}  Kd6 {[%clk 0:00:05]} 58. a6 {[%clk 0:00:20]} 1-0


[Site "https://www.chess.com"]

[Event "Titled Tuesday Blitz February 28 Early 2023"]
[White "Boyer, Mahel"]
[Black "Ehlvest, Jaan"]
[WhiteFideId "45102422"]
[BlackFideId "4500016"]
[WhiteElo "2434"]
[BlackElo "2442"]
[Result "1-0"]
[Round "02"]
[TimeControl "180+2"]
[Date "2023.02.28"]
[WhiteClock "0:00:51"]
[BlackClock "0:00:01"]

1. e4 {[%clk 0:03:00]}  c5 {[%clk 0:02:58]} 2. Nf3 {[%clk 0:03:00]}  Nc6 {[%clk 0:02:58]} 3. d4 {[%clk 0:03:01]}  cxd4 {[%clk 0:02:58]} 4. Nxd4 {[%clk 0:03:02]}  Nf6 {[%clk 0:02:58]} 5. Nc3 {[%clk 0:03:02]}  e5 {[%clk 0:02:58]} 6. Nde2 {[%clk 0:02:53]}  Bc5 {[%clk 0:02:57]} 7. Ng3 {[%clk 0:02:44]}  d6 {[%clk 0:02:53]} 8. Bc4 {[%clk 0:02:41]}  Ng4 {[%clk 0:02:49]} 9. Qf3 {[%clk 0:02:31]}  Bxf2+ {[%clk 0:02:28]} 10. Kf1 {[%clk 0:02:27]}  O-O {[%clk 0:02:28]} 11. h3 {[%clk 0:02:27]}  Nd4 {[%clk 0:02:28]} 12. Qd3 {[%clk 0:02:25]}  Bxg3 {[%clk 0:01:39]} 13. Qxg3 {[%clk 0:02:26]}  Nf6 {[%clk 0:01:36]} 14. Bg5 {[%clk 0:02:22]}  Be6 {[%clk 0:01:33]} 15. Bd3 {[%clk 0:02:18]}  Nh5 {[%clk 0:01:22]} 16. Qh4 {[%clk 0:02:17]}  f6 {[%clk 0:01:22]} 17. Be3 {[%clk 0:02:15]}  f5 {[%clk 0:01:18]} 18. Bg5 {[%clk 0:02:02]}  fxe4+ {[%clk 0:01:15]} 19. Kg1 {[%clk 0:02:02]}  Qe8 {[%clk 0:01:11]} 20. Nxe4 {[%clk 0:02:00]}  Nf5 {[%clk 0:00:59]} 21. Qe1 {[%clk 0:01:53]}  h6 {[%clk 0:00:47]} 22. Bd2 {[%clk 0:01:48]}  Nf4 {[%clk 0:00:38]} 23. Bxf4 {[%clk 0:01:36]}  exf4 {[%clk 0:00:38]} 24. Qb4 {[%clk 0:01:37]}  Qc6 {[%clk 0:00:34]} 25. Re1 {[%clk 0:01:33]}  Rae8 {[%clk 0:00:28]} 26. Qb5 {[%clk 0:01:13]}  Bd5 {[%clk 0:00:20]} 27. Qxc6 {[%clk 0:01:12]}  Bxc6 {[%clk 0:00:19]} 28. Kf2 {[%clk 0:01:11]}  Ne3 {[%clk 0:00:08]} 29. Nxd6 {[%clk 0:01:09]}  Rd8 {[%clk 0:00:08]} 30. Bc4+ {[%clk 0:01:01]}  Kh7 {[%clk 0:00:06]} 31. Bd3+ {[%clk 0:01:01]}  g6 {[%clk 0:00:06]} 32. Ne4 {[%clk 0:01:01]}  Kg7 {[%clk 0:00:05]} 33. Rhg1 {[%clk 0:00:56]}  Rfe8 {[%clk 0:00:05]} 34. Nc5 {[%clk 0:00:55]}  b6 {[%clk 0:00:01]} 35. Nb3 {[%clk 0:00:56]}  g5 {[%clk 0:00:01]} 36. Re2 {[%clk 0:00:51]} 1-0


[Site "https://www.chess.com"]

[Event "Titled Tuesday Blitz February 28 Early 2023"]
[White "Cabarkapa, Novak"]
[Black "Astafurov, Arseniy"]
[WhiteFideId "943746"]
[BlackFideId "24175218"]
[WhiteElo "2395"]
[BlackElo "2163"]
[Result "1-0"]
[Round "02"]
[TimeControl "180+2"]
[Date "2023.02.28"]
[WhiteClock "0:01:21"]
[BlackClock "0:00:17"]

1. d4 {[%clk 0:03:00]}  Nf6 {[%clk 0:02:59]} 2. Nc3 {[%clk 0:03:01]}  d5 {[%clk 0:02:59]} 3. Bf4 {[%clk 0:03:01]}  a6 {[%clk 0:02:58]} 4. e3 {[%clk 0:03:01]}  c5 {[%clk 0:02:58]} 5. dxc5 {[%clk 0:03:01]}  Nc6 {[%clk 0:02:55]} 6. a3 {[%clk 0:03:01]}  e5 {[%clk 0:02:50]} 7. Bg5 {[%clk 0:03:01]}  Be6 {[%clk 0:02:35]} 8. b4 {[%clk 0:03:01]}  Be7 {[%clk 0:02:33]} 9. Nf3 {[%clk 0:03:01]}  h6 {[%clk 0:02:24]} 10. Bxf6 {[%clk 0:02:59]}  Bxf6 {[%clk 0:02:25]} 11. e4 {[%clk 0:03:00]}  d4 {[%clk 0:02:12]} 12. Na4 {[%clk 0:02:59]}  O-O {[%clk 0:02:09]} 13. Nb6 {[%clk 0:03:00]}  Rb8 {[%clk 0:02:06]} 14. Bc4 {[%clk 0:03:00]}  Qe7 {[%clk 0:01:52]} 15. O-O {[%clk 0:02:55]}  Rfd8 {[%clk 0:01:44]} 16. Nd5 {[%clk 0:02:51]}  Qf8 {[%clk 0:01:26]} 17. Nxf6+ {[%clk 0:02:50]}  gxf6 {[%clk 0:01:27]} 18. Bd3 {[%clk 0:02:48]}  a5 {[%clk 0:01:22]} 19. Rb1 {[%clk 0:02:47]}  Rdc8 {[%clk 0:00:55]} 20. Nh4 {[%clk 0:02:44]}  Ne7 {[%clk 0:00:54]} 21. f4 {[%clk 0:02:38]}  axb4 {[%clk 0:00:43]} 22. axb4 {[%clk 0:02:39]}  b6 {[%clk 0:00:43]} 23. cxb6 {[%clk 0:02:37]}  Rxb6 {[%clk 0:00:43]} 24. Qh5 {[%clk 0:02:22]}  Qg7 {[%clk 0:00:37]} 25. f5 {[%clk 0:02:16]}  Bc4 {[%clk 0:00:38]} 26. Rf3 {[%clk 0:02:15]}  Kh8 {[%clk 0:00:36]} 27. Rg3 {[%clk 0:02:13]}  Qh7 {[%clk 0:00:35]} 28. Nf3 {[%clk 0:02:04]}  Bxd3 {[%clk 0:00:35]} 29. cxd3 {[%clk 0:02:04]}  Rc3 {[%clk 0:00:29]} 30. Nd2 {[%clk 0:01:55]}  Rb8 {[%clk 0:00:24]} 31. Nc4 {[%clk 0:01:55]}  Rg8 {[%clk 0:00:20]} 32. Rxg8+ {[%clk 0:01:50]}  Nxg8 {[%clk 0:00:21]} 33. b5 {[%clk 0:01:48]}  Qg7 {[%clk 0:00:20]} 34. b6 {[%clk 0:01:46]}  Rc2 {[%clk 0:00:20]} 35. Qf3 {[%clk 0:01:44]}  Qf8 {[%clk 0:00:17]} 36. b7 {[%clk 0:01:43]}  Qb8 {[%clk 0:00:17]} 37. Qd1 {[%clk 0:01:30]}  Ra2 {[%clk 0:00:17]} 38. Qb3 {[%clk 0:01:29]}  Ra7 {[%clk 0:00:18]} 39. Qb4 {[%clk 0:01:24]}  Kg7 {[%clk 0:00:17]} 40. Qd6 {[%clk 0:01:21]} 1-0


[Site "https://www.chess.com"]

[Event "Titled Tuesday Blitz February 28 Early 2023"]
[White "Talibov, Shiroghlan"]
[Black "Bilan, Danila"]
[WhiteFideId "13429078"]
[BlackFideId "24161918"]
[WhiteElo "2218"]
[BlackElo "2182"]
[Result "1-0"]
[Round "02"]
[TimeControl "180+2"]
[Date "2023.02.28"]
[WhiteClock "0:01:26"]
[BlackClock "0:00:02"]

1. f4 {[%clk 0:03:00]}  d5 {[%clk 0:02:52]} 2. Nf3 {[%clk 0:03:00]}  Nf6 {[%clk 0:02:53]} 3. b3 {[%clk 0:03:00]}  Bf5 {[%clk 0:02:51]} 4. Bb2 {[%clk 0:02:59]}  e6 {[%clk 0:02:50]} 5. e3 {[%clk 0:02:58]}  h6 {[%clk 0:02:50]} 6. Be2 {[%clk 0:02:55]}  Be7 {[%clk 0:02:39]} 7. O-O {[%clk 0:02:55]}  O-O {[%clk 0:02:39]} 8. h3 {[%clk 0:02:50]}  Ne4 {[%clk 0:02:23]} 9. Qe1 {[%clk 0:02:45]}  Bf6 {[%clk 0:02:11]} 10. Ne5 {[%clk 0:02:36]}  Nd7 {[%clk 0:02:02]} 11. d3 {[%clk 0:02:35]}  Nd6 {[%clk 0:01:58]} 12. Nd2 {[%clk 0:02:33]}  c5 {[%clk 0:01:36]} 13. Ndf3 {[%clk 0:02:24]}  Rc8 {[%clk 0:01:18]} 14. Rd1 {[%clk 0:02:22]}  Qe7 {[%clk 0:01:10]} 15. Kh2 {[%clk 0:02:18]}  b5 {[%clk 0:00:50]} 16. Nxd7 {[%clk 0:02:13]}  Qxd7 {[%clk 0:00:27]} 17. Bxf6 {[%clk 0:02:12]}  gxf6 {[%clk 0:00:28]} 18. Qh4 {[%clk 0:02:12]}  Kg7 {[%clk 0:00:26]} 19. e4 {[%clk 0:02:04]}  dxe4 {[%clk 0:00:16]} 20. dxe4 {[%clk 0:02:05]}  Bxe4 {[%clk 0:00:17]} 21. Ne5 {[%clk 0:02:06]}  Qe7 {[%clk 0:00:08]} 22. Rxd6 {[%clk 0:01:57]}  Qxd6 {[%clk 0:00:05]} 23. Ng4 {[%clk 0:01:36]}  Rh8 {[%clk 0:00:04]} 24. Qxf6+ {[%clk 0:01:35]}  Kf8 {[%clk 0:00:04]} 25. Ne5 {[%clk 0:01:35]}  Rh7 {[%clk 0:00:03]} 26. f5 {[%clk 0:01:33]}  Bxf5 {[%clk 0:00:02]} 27. Rxf5 {[%clk 0:01:31]}  Rg7 {[%clk 0:00:02]} 28. Rf4 {[%clk 0:01:30]}  Qd5 {[%clk 0:00:01]} 29. Bf3 {[%clk 0:01:29]}  Qd2 {[%clk 0:00:02]} 30. Nxf7 {[%clk 0:01:26]} 1-0


[Site "https://www.chess.com"]

[Event "Titled Tuesday Blitz February 28 Early 2023"]
[White "polandchessplayer"]
[Black "Jaskolka, Tomasz"]
[BlackFideId "1170791"]
[WhiteElo "2768"]
[BlackElo "2155"]
[Result "1-0"]
[Round "02"]
[TimeControl "180+2"]
[Date "2023.02.28"]
[WhiteClock "0:00:30"]
[BlackClock "0:00:12"]

1. c4 {[%clk 0:03:00]}  c6 {[%clk 0:02:58]} 2. Nf3 {[%clk 0:02:59]}  d5 {[%clk 0:02:59]} 3. b3 {[%clk 0:02:57]}  Nf6 {[%clk 0:02:58]} 4. Bb2 {[%clk 0:02:57]}  Bf5 {[%clk 0:02:55]} 5. e3 {[%clk 0:02:55]}  e6 {[%clk 0:02:55]} 6. Be2 {[%clk 0:02:55]}  Nbd7 {[%clk 0:02:55]} 7. O-O {[%clk 0:02:55]}  Be7 {[%clk 0:02:55]} 8. d4 {[%clk 0:02:55]}  O-O {[%clk 0:02:55]} 9. Nbd2 {[%clk 0:02:55]}  h6 {[%clk 0:02:55]} 10. Rc1 {[%clk 0:02:52]}  Qa5 {[%clk 0:02:53]} 11. c5 {[%clk 0:02:36]}  Qxa2 {[%clk 0:02:23]} 12. Bc3 {[%clk 0:02:28]}  b6 {[%clk 0:02:00]} 13. b4 {[%clk 0:01:27]}  bxc5 {[%clk 0:01:54]} 14. bxc5 {[%clk 0:01:28]}  Rfb8 {[%clk 0:01:43]} 15. Ra1 {[%clk 0:01:18]}  Qc2 {[%clk 0:01:42]} 16. Qxc2 {[%clk 0:01:19]}  Bxc2 {[%clk 0:01:43]} 17. Rfc1 {[%clk 0:01:19]}  Bg6 {[%clk 0:01:37]} 18. Ra6 {[%clk 0:01:19]}  Rc8 {[%clk 0:01:25]} 19. Rca1 {[%clk 0:01:19]}  Rc7 {[%clk 0:00:50]} 20. Ba5 {[%clk 0:01:19]}  Rcc8 {[%clk 0:00:50]} 21. Bb6 {[%clk 0:01:19]}  Rab8 {[%clk 0:00:20]} 22. Rxa7 {[%clk 0:01:01]}  Nxb6 {[%clk 0:00:20]} 23. cxb6 {[%clk 0:00:52]}  Rxb6 {[%clk 0:00:20]} 24. Rxe7 {[%clk 0:00:52]}  c5 {[%clk 0:00:20]} 25. dxc5 {[%clk 0:00:48]}  Rxc5 {[%clk 0:00:20]} 26. Rea7 {[%clk 0:00:45]}  Kh7 {[%clk 0:00:20]} 27. h3 {[%clk 0:00:41]}  Rb2 {[%clk 0:00:19]} 28. R7a2 {[%clk 0:00:39]}  Rcc2 {[%clk 0:00:19]} 29. Rxb2 {[%clk 0:00:39]}  Rxb2 {[%clk 0:00:20]} 30. Kf1 {[%clk 0:00:36]}  Nd7 {[%clk 0:00:18]} 31. Ke1 {[%clk 0:00:35]}  Nc5 {[%clk 0:00:19]} 32. Rc1 {[%clk 0:00:35]}  Na4 {[%clk 0:00:13]} 33. Ne5 {[%clk 0:00:34]}  Bc2 {[%clk 0:00:12]} 34. Rxc2 {[%clk 0:00:30]} 1-0


[Site "https://www.chess.com"]